bitfinex/quotes_ETHUSD_20251122
["timestamp","ask_amount","ask_price","bid_price","bid_amount"]
[1763794933310,0.38875604,2772.2,2770.1,0.001]
[1763794933311,0.90699264,2771.6,2770.1,0.001]
[1763794933575,4.557914,2771.7,2770.1,0.001]
[1763794933576,5.022314,2770.5,2770.1,0.001]
[1763794933713,5.022314,2770.5,2769.2,0.001]
[1763794933714,4.557914,2769.7,2769.2,0.001]
[1763794933914,0.90699264,2769.2,2768.5,0.001]
[1763794934217,0.1936,2768.6,2768.5,0.001]
[1763794934517,4.557914,2769.3,2768.5,0.001]
[1763794934518,0.3364655,2768.9,2768.5,0.001]
[1763794934661,0.90999064,2769.5,2768.5,0.001]
[1763794934863,0.1936,2768.9,2768.5,0.001]
[1763794935315,0.4508,2768.8,2768.5,0.001]
[1763794935516,0.123,2768.7,2768.5,0.001]
[1763794935875,0.4508,2768.6,2768.5,0.001]
[1763794936365,0.123,2768.6,2768.5,0.001]
[1763794936723,0.5738,2768.6,2768.5,0.001]
[1763794940125,0.4508,2768.6,2768.5,0.001]
[1763794940330,0.5738,2768.6,2768.5,0.001]
[1763794941845,1.008,2768.6,2768.5,0.001]
[1763794943131,1.79199264,2768.6,2768.3,0.001]
[1763794943294,0.0043,2768.4,2768.3,0.001]
[1763794943741,0.4551,2768.4,2768.3,0.001]
[1763794944499,0.4551,2768.4,2766.9,0.4113]
[1763794944698,0.4695,2768.3,2766.9,0.4113]
[1763794945100,0.4695,2768.3,2767.2,0.90699264]
[1763794945302,0.5705,2768.2,2766.9,0.4113]
[1763794945725,0.4508,2768.1,2766.9,0.4113]
[1763794947827,0.04515895,2768.0,2766.8,0.1948]
[1763794948029,0.04515895,2768.0,2766.8,0.001]
[1763794948336,0.7674,2767.9,2766.8,0.001]
[1763794948542,0.3976,2766.9,2766.8,0.001]
[1763794948742,0.5206,2766.9,2766.8,0.001]
[1763794948942,0.9714,2766.9,2766.8,0.001]
[1763794949840,0.8484,2766.9,2766.8,0.001]
[1763794950041,0.9714,2766.9,2766.8,0.001]
[1763794950245,0.5206,2766.9,2766.8,0.001]
[1763794950762,0.9714,2766.9,2766.8,0.001]
[1763794953153,0.8484,2766.9,2766.8,0.001]
[1763794953353,0.9714,2766.9,2766.8,0.001]
[1763794953570,1.376904,2766.9,2766.8,0.001]
[1763794954829,0.9714,2766.9,2766.8,0.001]
[1763794955727,1.376904,2766.9,2766.8,0.001]
[1763794956157,1.253904,2766.9,2766.8,0.001]
[1763794956362,1.376904,2766.9,2766.8,0.001]
[1763794956704,1.31249664,2766.8,2766.5,0.001]
[1763794956878,0.599204,2766.6,2766.5,0.001]
[1763794957165,4.02475264,2766.6,2766.5,0.001]
[1763794957368,4.48765264,2766.6,2766.5,0.001]
[1763794957567,2.09209664,2766.6,2766.5,0.001]
[1763794959532,1.10069264,2766.6,2766.5,0.001]
[1763794960070,1.22369264,2766.6,2766.5,0.001]
[1763794960274,1.22383054,2766.9,2766.5,0.001]
[1763794960488,0.123,2766.8,2766.5,0.001]
[1763794960717,0.1878,2767.2,2766.5,0.4891]
[1763794960996,0.16817364,2767.1,2766.5,0.001]
[1763794961150,0.04517364,2767.1,2766.5,0.001]
[1763794961352,0.123,2767.0,2766.5,0.001]
[1763794961559,0.123,2766.9,2766.5,0.001]
[1763794961860,0.123,2766.9,2766.5,0.4891]
[1763794962056,0.1878,2767.4,2766.8,0.4537]
[1763794962057,0.33320278,2767.4,2766.8,0.4537]
[1763794962261,0.123,2767.3,2766.8,0.4537]
[1763794963391,0.33320278,2767.2,2766.8,0.4537]
[1763794963772,0.90035987,2767.2,2766.8,0.4537]
[1763794963975,1.10085605,2767.1,2766.8,0.4537]
[1763794964199,0.33320278,2767.0,2766.8,0.4537]
[1763794964584,0.123,2766.9,2766.8,0.4537]
[1763794964784,0.33320278,2767.0,2766.9,0.9418]
[1763794964988,0.45620278,2767.0,2766.9,0.4537]
[1763794965398,0.45620278,2767.0,2766.6,0.4881]
[1763794965990,0.50137806,2767.0,2766.5,0.001]
[1763794966374,1.26903133,2767.0,2766.5,0.001]
[1763794966573,1.10085605,2766.9,2766.5,0.001]
[1763794966775,0.37838132,2766.8,2766.6,0.4881]
[1763794967003,0.123,2766.7,2766.6,0.4881]
[1763794967201,0.123,2766.7,2766.6,0.9418]
[1763794967385,0.45948183,2766.7,2766.6,0.9418]
[1763794967564,0.123,2766.7,2766.6,0.9418]
[1763794967768,0.123,2766.7,2766.5,0.001]
[1763794967961,0.504662,2766.7,2766.5,0.001]
[1763794968166,0.16818017,2766.7,2766.5,0.001]
[1763794968364,0.123,2766.7,2766.5,0.001]
[1763794968800,0.04518181,2766.6,2766.5,0.001]
[1763794969180,0.123,2766.7,2766.5,0.001]
[1763794969381,0.77116857,2766.6,2766.5,0.001]
[1763794969596,0.72598676,2766.6,2766.5,0.001]
[1763794969797,0.64198807,2766.6,2766.5,0.001]
[1763794969968,1.41706863,2766.6,2766.5,0.001]
[1763794970311,0.76498807,2766.6,2766.5,0.001]
[1763794970671,0.64198807,2766.6,2766.5,0.001]
[1763794970872,0.64198807,2766.6,2766.5,0.9428]
[1763794970873,1.23456732,2766.6,2766.5,0.9428]
[1763794971100,0.45948676,2766.6,2766.5,0.9428]
[1763794971512,0.33648676,2766.6,2766.5,0.9428]
[1763794971782,0.45948676,2766.6,2766.5,0.9428]
[1763794971931,0.123,2766.6,2766.5,0.9428]
[1763794972425,0.45948676,2766.6,2766.5,0.9428]
[1763794973315,1.23640993,2766.6,2766.5,0.9428]
[1763794973626,0.33648676,2766.6,2766.5,0.4547]
[1763794973927,0.45948676,2766.6,2766.5,0.001]
[1763794974228,1.23640993,2766.6,2766.5,0.001]
[1763794974428,1.4569355,2766.6,2766.5,0.001]
[1763794975027,1.23640993,2766.6,2766.5,0.9428]
[1763794975610,1.23640993,2766.6,2766.5,0.4547]
[1763794976223,2.08225566,2766.6,2766.5,0.4547]
[1763794976427,1.23640993,2766.6,2766.5,0.9428]
[1763794978048,1.23640993,2766.6,2766.5,0.4547]
[1763794978258,2.99233684,2766.6,2766.5,0.001]
[1763794978475,2.48609111,2766.6,2766.5,0.001]
[1763794978754,4.43539832,2766.6,2766.5,0.001]
[1763794978954,4.87979096,2766.6,2766.5,0.001]
[1763794979314,4.75679096,2766.6,2766.5,0.001]
[1763794979559,4.87979096,2766.6,2766.5,0.001]
[1763794979759,4.43539832,2766.6,2766.5,0.001]
[1763794979965,2.48609111,2766.6,2766.2,0.001]
[1763794980144,1.95407788,2766.3,2766.2,0.001]
[1763794980460,2.02500257,2766.3,2766.2,0.001]
[1763794980773,2.48790257,2766.3,2766.2,0.001]
[1763794982309,0.90699264,2766.2,2765.0,0.6819]
[1763794982514,0.97427254,2765.7,2765.0,0.6819]
[1763794982813,1.23640993,2765.6,2765.1,0.4881]
[1763794983052,1.23640993,2765.5,2765.1,0.4881]
[1763794983256,1.11340993,2765.4,2765.1,0.4881]
[1763794983465,0.33648676,2765.3,2765.1,0.4881]
[1763794983670,0.45948676,2765.2,2765.1,0.4881]
[1763794984046,0.45948676,2765.2,2765.1,0.9418]
[1763794984848,0.77907917,2765.6,2765.1,1.55786684]
[1763794985058,0.123,2765.4,2765.2,0.4881]
[1763794985372,0.77907917,2765.8,2765.2,0.4881]
[1763794985536,0.123,2765.5,2765.2,0.4881]
[1763794985746,0.77907917,2765.8,2765.3,5.24777242]
[1763794985968,0.123,2765.7,2765.4,0.57358724]
[1763794986144,0.123,2765.7,2765.6,0.4719]
[1763794986539,0.123,2765.7,2765.6,0.9515]
[1763794987453,0.77905141,2766.1,2765.6,0.9515]
[1763794987671,0.77905141,2766.1,2765.7,0.4796]
[1763794987972,0.123,2766.0,2765.7,0.4796]
[1763794988343,0.123,2766.0,2765.9,0.4719]
[1763794988781,0.90220318,2766.0,2765.9,0.4719]
[1763794989073,1.08985075,2766.0,2765.9,0.9515]
[1763794989574,0.96685075,2766.0,2765.9,0.9515]
[1763794989775,0.123,2766.0,2765.9,0.9515]
[1763794990071,0.90220318,2766.0,2765.9,0.9515]
[1763794990374,0.90420318,2766.0,2765.9,0.9515]
[1763794990825,0.125,2766.0,2765.9,0.9515]
[1763794997512,0.002,2766.0,2765.9,0.9515]
[1763794997717,0.125,2766.0,2765.9,0.9515]
[1763794997917,0.002,2766.0,2765.9,0.9515]
[1763794998141,0.125,2766.0,2765.9,0.9515]
[1763794998546,0.125,2766.0,2765.9,0.4719]
[1763794999543,0.17019161,2766.0,2765.1,0.61706684]
[1763794999742,0.61339161,2766.0,2765.2,0.4796]
[1763794999952,0.33834968,2765.9,2765.2,0.4796]
[1763795000162,1.11795759,2765.9,2765.2,0.4796]
[1763795000464,0.33834968,2765.8,2765.2,0.4796]
[1763795000823,0.125,2766.0,2765.2,0.4796]
[1763795000824,0.33834968,2765.9,2765.2,0.4796]
[1763795002155,0.34034968,2766.0,2765.8,0.4719]
[1763795002328,0.34034968,2766.0,2765.9,0.4719]
[1763795002737,0.46334968,2766.0,2765.9,0.9515]
[1763795003859,0.34034968,2766.0,2765.9,0.9515]
[1763795004060,0.46334968,2766.0,2765.9,0.9515]
[1763795004360,0.125,2766.0,2765.9,0.9515]
[1763795006422,0.125,2766.0,2765.9,0.4719]
[1763795006629,0.46365454,2766.0,2765.9,0.9515]
[1763795006856,0.002,2766.0,2765.9,0.9515]
[1763795007020,0.125,2766.0,2765.9,0.9515]
[1763795007221,0.34065454,2766.0,2765.9,0.9515]
[1763795007424,0.34065454,2766.0,2765.9,1.53087684]
[1763795007425,0.125,2766.0,2765.9,1.53087684]
[1763795007657,0.002,2766.0,2765.9,1.53087684]
[1763795007846,0.002,2766.0,2765.9,1.93638084]
[1763795009579,0.002,2766.0,2765.9,1.53087684]
[1763795009794,0.002,2766.0,2765.9,0.9515]
[1763795013208,0.002,2766.0,2765.5,0.4796]
[1763795013513,0.45683437,2765.9,2765.1,0.001]
[1763795013725,0.0012,2765.4,2765.1,0.001]
[1763795013880,0.123,2765.3,2765.1,0.001]
[1763795014075,0.4387,2765.2,2765.1,0.001]
[1763795014572,2.01467257,2765.2,2765.1,0.001]
[1763795015762,2.01445784,2765.2,2765.1,0.001]
[1763795016073,2.31890289,2765.2,2765.1,0.001]
[1763795016712,3.82494087,2765.2,2765.1,0.001]
[1763795016930,3.63139953,2765.2,2765.1,0.001]
[1763795017451,4.60531107,2765.2,2765.1,0.001]
[1763795017925,4.72831107,2765.2,2765.1,0.001]
[1763795018246,1.31249664,2765.0,2764.6,0.001]
[1763795018450,2.01207943,2764.7,2764.6,0.001]
[1763795018759,2.58625048,2764.7,2764.6,0.001]
[1763795019047,0.46162664,2764.7,2764.6,0.001]
[1763795019258,0.123,2764.7,2764.6,0.001]
[1763795020548,0.5627,2764.7,2764.6,0.001]
[1763795021483,0.123,2764.7,2764.6,0.001]
[1763795021810,0.5629,2764.7,2764.6,0.001]
[1763795022019,1.0165,2764.7,2764.6,0.001]
[1763795022216,0.5629,2764.7,2764.6,0.001]
[1763795022562,1.0165,2764.7,2764.6,0.001]
[1763795022760,1.35378262,2764.7,2764.6,0.001]
[1763795023062,2.13095327,2764.7,2764.6,0.001]
[1763795023356,2.3636786,2764.7,2764.6,0.001]
[1763795024016,3.14767124,2764.7,2764.6,0.001]
[1763795024313,3.27067124,2764.7,2764.6,0.001]
[1763795025214,3.67617524,2764.7,2764.6,0.001]
[1763795025648,3.27067124,2764.7,2764.6,0.001]
[1763795026826,3.14767124,2764.7,2764.6,0.001]
[1763795027033,2.49350059,2764.7,2764.6,0.001]
[1763795027421,1.00990795,2764.7,2764.6,0.001]
[1763795027729,0.56759405,2765.1,2764.6,0.001]
[1763795027916,0.123,2765.0,2764.6,0.9678]
[1763795028319,0.002,2765.2,2764.9,0.4875]
[1763795028559,0.123,2765.1,2764.9,0.4875]
[1763795028715,0.123,2765.1,2764.9,0.9668]
[1763795029164,0.002,2765.2,2765.0,0.9668]
[1763795029450,0.123,2765.1,2765.0,0.9668]
[1763795029857,0.002,2765.2,2765.0,0.9668]
[1763795030019,0.002,2765.2,2765.1,0.6678]
[1763795030216,0.125,2765.2,2765.1,0.4875]
[1763795030616,0.002,2765.2,2765.1,0.4875]
[1763795030847,0.125,2765.2,2765.1,0.4875]
[1763795031155,0.125,2765.2,2764.8,0.6596]
[1763795031459,0.125,2765.2,2764.9,0.4793]
[1763795031876,0.125,2765.2,2765.1,0.4875]
[1763795035179,0.002,2765.2,2765.1,2.27929664]
[1763795035337,0.002,2765.2,2765.1,2.96569224]
[1763795035761,0.002,2765.5,2765.1,6.58219797]
[1763795035976,0.002,2765.5,2765.4,5.07215938]
[1763795036275,0.002,2765.5,2765.4,5.47766338]
[1763795036479,0.002,2765.5,2765.4,6.55265972]
[1763795037880,0.002,2765.5,2765.4,0.4875]
[1763795038785,0.002,2765.5,2765.4,0.9668]
[1763795040460,0.002,2765.5,2765.4,0.4875]
[1763795042094,0.002,2765.5,2765.4,0.9668]
[1763795042286,0.002,2765.5,2765.4,5.55145938]
[1763795042487,0.002,2765.5,2765.4,6.51210932]
[1763795044399,0.002,2765.5,2765.4,0.4875]
[1763795044770,0.002,2765.5,2765.4,0.9668]
[1763795045778,0.002,2765.5,2765.4,0.4875]
[1763795045978,0.002,2765.5,2765.4,0.9497]
[1763795046277,0.002,2765.5,2765.4,5.93986338]
[1763795046478,0.002,2765.5,2765.4,6.53384972]
[1763795047061,0.002,2765.5,2765.4,5.93986338]
[1763795047293,0.002,2765.5,2765.4,0.4875]
[1763795047862,0.002,2765.5,2765.4,0.9497]
[1763795050285,0.002,2765.5,2765.4,1.355204]
[1763795050691,0.002,2765.5,2765.4,6.84685602]
[1763795050895,0.002,2765.5,2765.4,7.53154162]
[1763795051131,0.002,2765.8,2765.5,1.31249664]
[1763795051294,0.002,2765.8,2765.7,0.862904]
[1763795051694,0.002,2766.0,2765.7,0.862904]
[1763795051695,0.002,2766.0,2765.8,0.405504]
[1763795051898,0.002,2766.0,2765.9,6.35455602]
[1763795052107,0.002,2766.0,2765.9,7.45758202]
[1763795052286,0.002,2766.3,2766.0,2.23209664]
[1763795052488,0.002,2766.3,2766.2,0.5699]
[1763795053004,0.002,2766.3,2766.2,1.0321]
[1763795054469,0.002,2766.3,2766.2,1.437604]
[1763795054583,0.002,2766.3,2766.2,1.71261406]
[1763795054783,0.002,2766.3,2766.2,0.5699]
[1763795055097,0.002,2766.3,2766.2,1.437604]
[1763795057339,0.002,2766.3,2766.2,6.15259664]
[1763795057701,0.002,2766.3,2766.2,2.34459664]
[1763795060333,0.002,2766.6,2766.3,4.92739233]
[1763795060648,0.002,2766.6,2766.5,0.90699264]
[1763795060813,0.002,2766.6,2766.5,1.76989664]
[1763795061330,0.002,2766.6,2766.5,1.82659264]
[1763795061507,0.002,2766.6,2766.5,1.36439264]
[1763795062545,0.002,2766.6,2766.5,0.90699264]
[1763795063106,0.002,2766.6,2766.5,2.23209664]
[1763795063343,0.002,2766.6,2766.5,2.4553063]
[1763795063546,0.002,2766.9,2766.8,5.89715602]
[1763795063713,0.002,2766.9,2766.8,6.35455602]
[1763795063916,0.002,2766.9,2766.8,6.81675602]
[1763795065942,0.002,2766.9,2766.8,2.23209664]
[1763795066144,0.002,2766.9,2766.8,0.90699264]
[1763795066370,0.002,2766.9,2766.8,2.23209664]
[1763795066663,0.002,2766.9,2766.8,2.91377224]
[1763795067183,0.002,2766.9,2766.8,6.52805588]
[1763795067475,0.1936,2767.9,2766.9,5.12549664]
[1763795067476,0.3372694,2767.9,2766.9,5.12549664]
[1763795067681,0.3372694,2767.9,2767.4,0.405504]
[1763795067682,0.5248694,2767.9,2767.4,0.405504]
[1763795067833,0.1876,2767.9,2767.4,0.405504]
[1763795068033,0.1876,2767.9,2767.4,0.867704]
[1763795068460,0.4719,2768.4,2767.8,0.4574]
[1763795068736,0.85406269,2768.3,2767.2,1.31249664]
[1763795068928,0.33700863,2768.2,2767.2,1.31249664]
[1763795069135,0.33700863,2768.2,2767.2,1.77469664]
[1763795069136,0.80890863,2768.2,2767.2,1.77469664]
[1763795069517,0.33700863,2768.1,2767.2,2.42293224]
[1763795069686,0.80890863,2768.1,2767.4,1.31249664]
[1763795069862,0.4719,2768.1,2767.4,5.12049664]
[1763795070032,0.4719,2768.1,2767.4,5.58269664]
[1763795070235,0.123,2768.3,2767.6,0.405504]
[1763795070433,0.4719,2768.2,2767.5,0.405504]
[1763795070634,0.3369346,2768.1,2767.5,0.405504]
[1763795070984,0.3369346,2768.1,2767.4,0.405504]
[1763795071165,0.3369346,2768.1,2767.4,0.24229322]
[1763795071504,0.3369346,2768.3,2768.0,0.4574]
[1763795071779,0.3369346,2768.4,2768.0,1.36439264]
[1763795072076,0.33875536,2768.6,2768.1,0.1853]
[1763795072240,0.33875536,2768.6,2768.1,0.6475]
[1763795072430,0.002,2768.6,2768.1,0.1853]
[1763795072631,0.4719,2768.5,2768.1,0.405504]
[1763795073235,0.002,2768.6,2768.1,0.405504]
[1763795073444,0.3678,2768.2,2767.7,0.405504]
[1763795073667,0.3678,2768.2,2767.6,0.90699264]
[1763795073877,0.5938,2768.1,2767.3,0.1893]
[1763795074083,0.5938,2768.1,2767.0,0.1853]
[1763795074084,0.3641,2767.6,2767.0,0.1853]
[1763795074265,0.3595,2767.1,2766.7,0.1893]
[1763795074466,0.3595,2767.1,2766.5,4.58465938]
[1763795074666,0.123,2767.4,2766.1,4.58465938]
[1763795074667,0.1994,2766.8,2766.1,4.58465938]
[1763795074859,0.1994,2766.8,2766.2,1.01949264]
[1763795075276,0.1994,2766.8,2766.0,0.4622]
[1763795075277,0.6713,2766.8,2766.0,0.6515]
[1763795075586,0.123,2766.7,2766.0,0.1893]
[1763795075784,0.5972,2766.7,2765.7,5.07565938]
[1763795075981,0.5972,2766.7,2765.7,5.09222532]
[1763795076158,0.5972,2766.7,2765.4,0.123]
[1763795076159,0.4501,2766.6,2765.3,4.58465938]
[1763795076359,0.3894,2765.8,2765.1,0.001]
[1763795076574,0.123,2765.7,2765.1,0.001]
[1763795076883,0.5622,2765.7,2765.1,0.001]
[1763795077110,0.0044,2765.2,2765.1,0.001]
[1763795077582,0.648,2765.9,2765.1,1.1305]
[1763795077888,0.648,2765.9,2765.1,0.57261594]
[1763795077889,0.123,2765.7,2765.1,0.57261594]
[1763795078094,0.123,2765.7,2765.1,0.001]
[1763795078294,0.5731,2765.7,2765.1,0.001]
[1763795079200,0.1979,2765.9,2765.1,0.6375]
[1763795079502,0.1979,2765.9,2765.1,0.1841]
[1763795079503,0.4501,2765.8,2765.1,0.1841]
[1763795079664,0.123,2765.7,2765.1,0.1841]
[1763795079866,0.123,2765.7,2765.1,0.001]
[1763795080199,0.123,2765.7,2765.1,0.6375]
[1763795080367,0.123,2765.7,2765.1,0.1841]
[1763795080698,0.123,2765.7,2765.1,1.2051752]
[1763795080898,0.77636449,2766.1,2765.3,4.58465938]
[1763795081102,0.45988972,2766.0,2765.1,0.001]
[1763795081269,0.33688972,2765.9,2765.1,0.001]
[1763795081465,0.648,2765.9,2765.1,0.001]
[1763795081669,0.33678199,2765.8,2765.1,0.001]
[1763795082189,0.4501,2765.8,2765.1,0.001]
[1763795083175,0.123,2765.7,2765.1,0.001]
[1763795083405,0.123,2765.6,2765.1,0.001]
[1763795083599,0.3791,2765.2,2765.1,0.001]
[1763795084195,0.8284,2765.2,2765.1,0.001]
[1763795087795,0.8284,2765.2,2764.6,0.001]
[1763795087796,0.0045,2765.0,2764.6,0.001]
[1763795087999,0.5687,2764.7,2764.6,0.001]
[1763795088374,1.0162,2764.7,2764.6,0.001]
[1763795088600,1.1392,2764.7,2764.6,0.001]
[1763795089976,1.0162,2764.7,2764.6,0.001]
[1763795090278,1.1392,2764.7,2764.6,0.001]
[1763795090820,0.5687,2764.7,2764.6,0.001]
[1763795091112,0.1979,2765.1,2764.6,0.001]
[1763795091310,0.123,2765.0,2764.6,0.001]
[1763795091513,0.4654,2764.7,2764.6,0.001]
[1763795091879,0.8192,2764.7,2764.6,0.001]
[1763795092715,0.9422,2764.7,2764.6,0.001]
[1763795094792,1.347704,2764.7,2764.6,0.001]
[1763795095118,1.347704,2764.7,2763.1,0.00700241]
[1763795095119,0.859104,2764.6,2763.1,0.00700241]
[1763795095290,0.771004,2764.4,2763.1,0.00700241]
[1763795095491,0.405504,2764.3,2763.1,0.00700241]
[1763795095693,0.412704,2764.1,2762.6,0.4534]
[1763795096112,0.5803,2764.1,2763.1,0.1831]
[1763795096527,1.14811171,2764.1,2763.1,0.1831]
[1763795097197,1.02511171,2764.1,2763.3,0.4534]
[1763795097594,1.14811171,2764.1,2763.3,0.4534]
[1763795099005,0.69801171,2764.1,2763.3,0.4534]
[1763795099402,0.69656487,2764.1,2763.3,0.4534]
[1763795099607,0.69656487,2764.1,2763.5,0.4534]
[1763795100504,0.56781171,2764.1,2763.5,0.4534]
[1763795100709,0.123,2764.1,2763.5,0.4534]
[1763795100942,0.123,2764.1,2763.2,0.90699264]
[1763795101240,0.123,2764.1,2763.7,0.4534]
[1763795101541,0.123,2764.1,2764.0,0.494]
[1763795101851,0.002,2764.9,2764.0,0.9474]
[1763795102005,0.5731,2764.8,2764.0,0.9474]
[1763795102206,0.5731,2764.8,2764.1,0.1831]
[1763795102409,0.4501,2764.8,2764.1,0.1831]
[1763795102607,0.123,2764.7,2764.1,0.1831]
[1763795102934,0.123,2764.7,2764.1,0.6365]
[1763795103738,0.45942707,2764.7,2764.1,0.6365]
[1763795103939,0.123,2764.7,2764.1,0.6365]
[1763795104269,0.45942602,2764.7,2764.1,0.6365]
[1763795104676,0.33642602,2764.7,2764.6,0.493]
[1763795104887,0.123,2764.7,2764.6,0.493]
[1763795105043,0.002,2764.9,2764.6,0.9464]
[1763795105239,0.002,2764.9,2764.8,0.493]
[1763795105676,0.002,2764.9,2764.8,0.9766]
[1763795106172,0.002,2764.9,2764.8,1.382104]
[1763795106492,0.002,2764.9,2764.8,3.36466524]
[1763795107166,0.002,2764.9,2764.8,6.98156338]
[1763795108160,0.002,2764.9,2764.8,3.36466524]
[1763795109784,0.002,2764.9,2764.8,1.88359264]
[1763795110088,0.002,2764.9,2764.3,0.4836]
[1763795110285,0.3873,2764.9,2764.3,0.4836]
[1763795110501,0.002,2764.9,2764.3,0.4836]
[1763795110790,0.002,2764.9,2764.8,0.4664]
[1763795110998,0.002,2764.9,2764.8,7.11193103]
[1763795111199,0.002,2764.9,2764.8,7.82312413]
[1763795112601,0.002,2764.9,2764.8,0.90699264]
[1763795112896,0.002,2764.9,2764.8,1.85699264]
[1763795113194,0.002,2764.9,2764.4,4.84943439]
[1763795113370,0.5687,2764.9,2764.3,0.4836]
[1763795113570,0.002,2764.9,2764.3,0.4836]
[1763795113770,0.002,2764.9,2764.5,0.90699264]
[1763795113994,0.002,2764.9,2764.4,4.84943439]
[1763795114196,0.002,2764.9,2764.5,0.4836]
[1763795114497,0.002,2764.9,2764.5,1.39059264]
[1763795114858,0.002,2764.9,2764.8,0.4664]
[1763795115276,0.002,2764.9,2764.8,0.95]
[1763795116265,0.002,2764.9,2764.5,0.90699264]
[1763795116896,0.002,2764.9,2764.8,0.4664]
[1763795117196,0.002,2764.9,2764.5,0.90699264]
[1763795117577,0.1834,2764.9,2764.5,0.90699264]
[1763795117895,0.1834,2764.9,2764.1,1.09009264]
[1763795117896,0.4639,2764.8,2764.1,1.09009264]
[1763795118810,0.123,2764.7,2764.0,0.001]
[1763795119009,0.0039,2764.1,2764.0,0.001]
[1763795119213,0.4678,2764.1,2764.0,0.001]
[1763795119723,0.80512426,2764.1,2764.0,0.001]
[1763795121206,0.92812426,2764.1,2764.0,0.001]
[1763795122632,0.33732426,2764.1,2764.0,0.001]
[1763795122808,0.123,2764.7,2764.0,0.951]
[1763795123333,0.46017718,2764.7,2764.0,0.951]
[1763795123547,0.33717718,2764.7,2764.1,0.1886]
[1763795123750,0.33717718,2764.7,2764.1,0.6722]
[1763795123946,0.125,2764.9,2764.2,0.4836]
[1763795124646,0.125,2764.9,2764.1,1.69449608]
[1763795124830,0.4639,2764.8,2764.0,4.85043439]
[1763795125036,0.33719972,2764.7,2764.0,4.85043439]
[1763795125608,0.46026541,2764.7,2764.1,0.1886]
[1763795129476,0.33726541,2764.6,2764.0,4.85043439]
[1763795130390,0.5869,2764.7,2764.0,4.85043439]
[1763795130682,0.4639,2764.6,2764.0,4.85043439]
[1763795131263,0.4659,2764.6,2764.0,4.85043439]
[1763795132293,0.3853,2764.1,2764.0,0.001]
[1763795132798,0.4631,2764.4,2764.0,0.001]
[1763795133291,0.386,2764.1,2764.0,0.001]
[1763795134123,0.9713,2764.1,2764.0,0.001]
[1763795136101,0.002,2764.6,2764.0,0.001]
[1763795136307,0.3633,2764.1,2764.0,0.001]
[1763795136727,0.8482,2764.1,2764.0,0.001]
[1763795136869,1.18592717,2764.1,2764.0,0.001]
[1763795138880,0.70102717,2764.1,2764.0,0.001]
[1763795139087,1.23114984,2764.1,2764.0,0.001]
[1763795139673,1.18592717,2764.1,2764.0,0.001]
[1763795140312,0.70102717,2764.1,2764.0,0.001]
[1763795140482,0.46072717,2764.1,2764.0,0.001]
[1763795140682,0.123,2764.1,2764.0,0.001]
[1763795141098,0.33796043,2764.3,2764.0,0.001]
[1763795141418,0.123,2764.2,2764.1,0.1905]
[1763795141738,0.123,2764.2,2764.0,0.478]
[1763795141739,0.4863,2764.2,2764.0,0.001]
[1763795141899,0.0048,2764.1,2764.0,0.001]
[1763795142096,0.123,2764.2,2764.0,0.001]
[1763795146754,0.3633,2764.1,2764.0,0.001]
[1763795146904,0.40852267,2764.1,2764.0,0.001]
[1763795147104,1.18685482,2764.1,2764.0,0.001]
[1763795148737,1.96771083,2764.1,2764.0,0.001]
[1763795148935,2.17698191,2764.1,2764.0,0.001]
[1763795149155,2.22220458,2764.1,2764.0,0.001]
[1763795149452,2.17698191,2764.1,2764.0,0.001]
[1763795150035,2.22220458,2764.1,2764.0,0.001]
[1763795150243,3.59668484,2764.1,2764.0,0.001]
[1763795150409,0.405504,2763.8,2763.7,0.001]
[1763795150618,2.04494241,2763.8,2763.5,0.001]
[1763795150815,0.0083,2763.6,2763.5,0.001]
[1763795151046,1.61391083,2763.6,2763.5,0.001]
[1763795151541,2.58940286,2763.6,2763.5,0.001]
[1763795151715,3.03587343,2763.6,2763.5,0.001]
[1763795153416,2.0603814,2763.6,2763.5,0.001]
[1763795153627,2.96737404,2763.6,2763.5,0.001]
[1763795153809,2.0603814,2763.6,2763.5,0.001]
[1763795155456,3.07938096,2763.6,2761.9,0.1831]
[1763795155638,0.0117,2762.6,2761.9,0.1831]
[1763795155837,0.123,2762.5,2761.9,0.1831]
[1763795156080,0.123,2762.5,2761.9,0.6601]
[1763795156255,0.123,2762.5,2762.0,4.5830502]
[1763795156417,0.123,2762.5,2762.4,5.2413502]
[1763795156818,0.123,2762.5,2762.4,5.7183502]
[1763795157328,0.123,2762.5,2762.4,5.0508502]
[1763795160571,1.40068608,2763.5,2762.4,5.5278502]
[1763795160866,1.4238007,2763.4,2762.8,0.4678]
[1763795161074,1.4238007,2763.4,2762.5,0.477]
[1763795161075,0.33780664,2763.3,2762.5,0.477]
[1763795161397,0.33780664,2763.3,2762.4,4.5830502]
[1763795161398,1.60218503,2763.3,2762.4,4.5830502]
[1763795161554,0.52879671,2763.2,2762.4,4.5830502]
[1763795161760,1.79319488,2763.2,2762.0,5.0600502]
[1763795161986,1.11610481,2763.1,2762.4,4.5830502]
[1763795162283,1.11610481,2763.0,2762.4,4.5830502]
[1763795162488,0.46080664,2762.9,2762.0,4.5830502]
[1763795162651,0.94690664,2762.9,2762.0,4.5830502]
[1763795162855,0.33780664,2762.8,2762.0,4.5830502]